Cogmind - Beta 15 *** ADVENTURER MODE // 2025.05.21 @ 22:11:35 Player: Jack Result: Destroyed by D-53 Grenadier with Mini Grenade Launcher Performance ------------- Evolutions (1) 500 Regions Visited (4) 800 Robots Destroyed (1) 5 Value Destroyed (20) 20 Prototype IDs (1) 20 Alien Tech Used (0) 0 Bonus (200) 200 TOTAL SCORE: 1545 Bonus ------- Pacifist 200 Cogmind --------- Core Integrity 0/400 Matter 272/300 Energy 98/100 System Corruption 2% Temperature Cool (0) Movement Core (50) Location -9/Mines Parts ------- > --- POWER (1) -------- (None) > --- PROPULSION (2) --- (None) > --- UTILITY (4) ------ (None) > --- WEAPON (2) ------- (None) > --- INVENTORY (5) ---- Splice Drone Bay (6/6) Improved Grenade Launcher Scythe Scythe Peak State ------------ > --- POWER ------------ (None) > --- PROPULSION ------- (None) > --- UTILITY ---------- Splice Drone Bay > --- WEAPON ----------- (None) > --- INVENTORY -------- Medium Laser Improved Grenade Launcher Scythe Scythe [Rating: 8] Favorites ----------- Power None Propulsion Flight Unit Flight Unit Flight Unit Utility Splice Drone Bay Device Splice Drone Bay Weapon Light Assault Rifle Energy Gun Small Laser Ballistic Gun Light Assault Rifle Launcher Improved Grenade Launcher Build | -11 -10 -10 -9 -9 ------- Run | Yrd Mat Min Mat Min Slots Evolved 2 | . . . 2 . Power . | . . . . . Propulsion . | . . . . . Utility 2 | . . . 2 . Weapon . | . . . . . Parts Attached 6 | . . . 4 2 Power . | . . . . . Engine . | . . . . . Core . | . . . . . Reactor . | . . . . . Propulsion 1 | . . . 1 . Treads . | . . . . . Leg . | . . . . . Wheel . | . . . . . Hover . | . . . . . Flight 1 | . . . 1 . Utility 1 | . . . . 1 Device 1 | . . . . 1 Storage . | . . . . . Processor . | . . . . . Hackware . | . . . . . Protection . | . . . . . Artifact . | . . . . . Weapon 4 | . . . 3 1 Energy Gun 2 | . . . 1 1 Energy Cannon . | . . . . . Ballistic Gun 1 | . . . 1 . Ballistic Cannon . | . . . . . Launcher 1 | . . . 1 . Special Weapon . | . . . . . Impact Weapon . | . . . . . Slashing Weapon . | . . . . . Piercing Weapon . | . . . . . Special Melee Weapon . | . . . . . Unidentified Prototypes 1 | . . . . 1 Parts Lost 3 | . . . 3 . Power . | . . . . . Propulsion 1 | . . . 1 . Utility . | . . . . . Weapon 2 | . . . 2 . Highest Loss Streak 2 | . . . 2 . To Critical Strikes . | . . . . . Average Backups 4 | 1 3 5 4 3 Power . | . . . . . Propulsion . | . . . . . Utility . | . . . . . Weapon 3 | 1 3 5 4 3 Tool/Special . | . . . . . Unused Backups 4 | . . . 2 2 Power . | . . . . . Propulsion . | . . . . . Utility . | . . . . . Weapon 4 | . . . 2 2 Tool/Special . | . . . . . Average Slot Usage (%) 3 | . . . 5 1 Ballistic Gun 1 | . . . 3 . Peak Build Rating 8 | . . . 3 8 Average Rating 1 | . . . . 2 On Entrance . | . . . . 1 Naked Turns 511 | . 51 22 207 231 Heaviest Build 8 | . . . 6 8 Greatest Support 4 | 3 3 3 4 3 Greatest Overweight (x) 2 | . . . 1 2 Average Overweight (x) . | . . . . . Largest Inventory Capacity 5 | 5 5 5 5 5 Average Capacity 5 | 5 5 5 5 5 Most Carried 5 | 3 5 5 5 4 Average Carried 4 | 2 3 5 4 3 Final Capacity 5 | 5 5 5 5 5 Final Carried 5 | 3 5 5 4 4 Class Distribution -------------------- 100% | Mutant Dominant Class ---------------- Mutant | -10/Materials Mutant | -10/Mines Mutant | -9/Materials Mutant | -9/Mines Resources | -11 -10 -10 -9 -9 ----------- Run | Yrd Mat Min Mat Min Matter Collected 225 | . . . 95 130 Remotely . | . . . . . Salvage Created 7 | . . . 7 . Parts . | . . . . . Haulers Intercepted . | . . . . . Recyclers Shooed . | . . . . . Parts Field Recycled . | . . . . . Retrieved Matter . | . . . . . Parts Self-Destructed . | . . . . . Prevented . | . . . . . Kills | -11 -10 -10 -9 -9 ------- Run | Yrd Mat Min Mat Min Combat Hostiles Destroyed 1 | . . . 1 . AOE 1 | . . . 1 . Classes Destroyed 1 | . . . 1 . Swarmer 1 | . . . 1 . Best Kill Streak 1 | . . . 1 . Combat Bots Only 1 | . . . 1 . Max Kills in Single Turn 1 | . . . 1 . Gunslinging . | . . . . . Exploded 1 | . . . 1 . Melee . | . . . . . Uniques/NPCs Destroyed . | . . . . . Combat | -11 -10 -10 -9 -9 -------- Run | Yrd Mat Min Mat Min Hostile Shots Fired 106 | . 10 . 89 7 Missed 50 | . 4 . 44 2 Hits 56 | . 6 . 45 5 Melee 2 | . . . 1 1 Projectile 54 | . 6 . 44 4 AOE 2 | . . . . 2 Critical Strikes 3 | . . . 2 1 Damage Taken 651 | . 52 . 493 106 Core 465 | . 52 . 307 106 Absorbed by Shields . | . . . . . Ignored by Resistances 187 | . 17 . 139 31 Core Remaining (%) 89 | 100 . 79 . . Volleys Fired 4 | . . . 1 3 Largest 1 | . . . 1 1 Hottest 50 | . . . 36 50 Shots Fired 4 | . . . 1 3 Gun 3 | . . . . 3 Cannon . | . . . . . Launcher 1 | . . . 1 . Special . | . . . . . Kinetic . | . . . . . Thermal 3 | . . . . 3 Explosive 1 | . . . 1 . Electromagnetic . | . . . . . Robot Hit Streak 2 | . . . . 2 Robot Miss Streak 2 | . . . 1 2 Penetration Max . | . . . . . Secondary Targets . | . . . . . Shots Hit Robots 2 | . . . . 2 Core Hits 1 | . . . 1 . Critical Kills . | . . . . . Critical Parts Destroyed . | . . . . . Critical Strikes . | . . . . . Melee Attacks . | . . . . . Impact . | . . . . . Slashing . | . . . . . Piercing . | . . . . . Sneak Attacks . | . . . . . Combat Hostiles . | . . . . . Follow-up Attacks . | . . . . . Damage Inflicted 59 | . . . 34 25 Guns 25 | . . . . 25 Cannons . | . . . . . Explosions 31 | . . . 31 . Melee . | . . . . . Ramming 3 | . . . 3 . Kinetic . | . . . . . Thermal 25 | . . . . 25 Explosive 31 | . . . 31 . Electromagnetic . | . . . . . Impact . | . . . . . Slashing . | . . . . . Piercing . | . . . . . Highest Corruption 2 | . . . 2 2 Average Corruption 1 | . . . 1 2 Corruption Purged . | . . . . . Corruption Blocked . | . . . . . Effects 3 | . . . 1 2 Message Errors 2 | . . . . 2 Energy Discharges 1 | . . . 1 . Overload Shots . | . . . . . Overflow Damage . | . . . . . Projectiles . | . . . . . Explosions . | . . . . . Melee . | . . . . . Knockbacks . | . . . . . Impact . | . . . . . Kinetic . | . . . . . Secondary . | . . . . . Self-Inflicted Damage 16 | . . . 16 . Shots 1 | . . . 1 . Rammed 1 | . . . 1 . Targets Rammed 1 | . . . 1 . Kicked . | . . . . . Crushed . | . . . . . Highest Temperature . | . . . . . Average Temperature . | . . . . . Received Heat Transfer 273 | . 24 . 237 12 Siege Activations . | . . . . . Martial Activations . | . . . . . Shielding Activations . | . . . . . Robots Disrupted . | . . . . . Combat Hostiles . | . . . . . Robots Corrupted . | . . . . . Combat Hostiles . | . . . . . Parts Fried . | . . . . . Impact Corruptions . | . . . . . Robots Melted . | . . . . . Combat Hostiles . | . . . . . Parts Melted . | . . . . . Heat Transferred 74 | . . . . 74 Parts Sabotaged . | . . . . . Parts Stolen . | . . . . . Parts Stripped . | . . . . . Power Chain Reactions . | . . . . . Alert | -11 -10 -10 -9 -9 ------- Run | Yrd Mat Min Mat Min Maximum Alert Level 1 | . . . 1 . Low Security (%) 99 | 100 100 100 99 100 Level 1 . | . . . . . Level 2 . | . . . . . Level 3 . | . . . . . Level 4 . | . . . . . Level 5 . | . . . . . High Security . | . . . . . Max Security . | . . . . . Peak Influence 206 | . 15 4 206 74 Initial 64 | . . 4 . 64 Average 33 | . 4 3 44 31 Influence Increases 432 | . 22 . 350 60 Destroy 0b10 Robot/C 20 | . . . 20 . Successful Hack 28 | . 7 . 21 . Disable Machine 9 | . . . 9 . Destroy Structure 15 | . . . 15 . Partial Spotted 15 | . 15 . . . Lose Combat Pursuer 345 | . . . 285 60 Influence Decreases 412 | . 7 15 154 236 Entered New Map 143 | . . 11 . 132 Time Decay 239 | . 7 4 124 104 Lost Part 30 | . . . 30 . Squads Dispatched 2 | . 1 . 1 . Investigation 1 | . 1 . . . Extermination . | . . . . . Reinforcement 1 | . . . 1 . Assault . | . . . . . Garrison . | . . . . . Intercept . | . . . . . Searches Triggered . | . . . . . Construction Impeded . | . . . . . Haulers Reinforced . | . . . . . Active Scanning Responses . | . . . . . Cargo Convoy Interrupts . | . . . . . Stealth | -11 -10 -10 -9 -9 --------- Run | Yrd Mat Min Mat Min Distress Signals 5 | . . . 5 . Communications Jammed . | . . . . . Distress Signals . | . . . . . Times Spotted 39 | . 5 . 25 9 Peak Tracking Total 17 | . 5 . 17 2 Tactical Retreats 8 | . . . 6 2 Traps | -11 -10 -10 -9 -9 ------- Run | Yrd Mat Min Mat Min Traps Triggered 4 | . 1 . 3 . Indirectly . | . . . . . Trap Hack Attempts . | . . . . . Triggered . | . . . . . Disarmed . | . . . . . Reprogrammed . | . . . . . Reused . | . . . . . Traps Extracted . | . . . . . Installed . | . . . . . Triggered . | . . . . . Machines | -11 -10 -10 -9 -9 ---------- Run | Yrd Mat Min Mat Min Machines Disabled 1 | . . . 1 . Max in Single Turn 1 | . . . 1 . Machines Repaired . | . . . . . Machines Dismantled . | . . . . . Machines Sabotaged . | . . . . . Overloaded Fab Kills . | . . . . . Hacking | -11 -10 -10 -9 -9 --------- Run | Yrd Mat Min Mat Min Machines Accessed 4 | . 1 . 2 1 Terminals 3 | . 1 . 2 . Fabricators . | . . . . . Repair Stations . | . . . . . Recycling Units . | . . . . . Scanalyzers . | . . . . . Garrison Access . | . . . . . Total Hacks 7 | . 2 . 4 1 Successful 5 | . 1 . 3 1 Failed 2 | . 1 . 1 . Catastrophic 1 | . 1 . . . Database Lockouts . | . . . . . Manual 4 | . 2 . 2 . Terminals 6 | . 2 . 4 . Fabricators . | . . . . . Repair Stations . | . . . . . Recycling Units . | . . . . . Scanalyzers . | . . . . . Garrison Access . | . . . . . Terminal Hacks 5 | . 1 . 3 1 Record 1 | . . . 1 . Robot Analysis 1 | . . . 1 . Open Door 1 | . . . . 1 Branch Access Points 2 | . 1 . 1 . Fabricator Hacks . | . . . . . Repair Station Hacks . | . . . . . Recycling Unit Hacks . | . . . . . Scanalyzer . | . . . . . Garrison Access Hacks . | . . . . . Unauthorized Hacks . | . . . . . Terminals . | . . . . . Fabricators . | . . . . . Repair Stations . | . . . . . Recycling Units . | . . . . . Scanalyzers . | . . . . . Garrison Access . | . . . . . Data Cores Recovered . | . . . . . Used . | . . . . . Hacking Detections 3 | . 1 . 2 . Full Trace Events . | . . . . . Feedback Events . | . . . . . Feedback Blocked . | . . . . . Robot Schematics Acquired . | . . . . . Robots Built . | . . . . . Authchips . | . . . . . Time . | . . . . . Total Robot Build Rating . | . . . . . Part Schematics Acquired . | . . . . . Parts Built . | . . . . . Authchips . | . . . . . Time . | . . . . . Total Part Build Rating . | . . . . . Parts Repaired . | . . . . . Time . | . . . . . Parts Recycled . | . . . . . Recycled Matter . | . . . . . Retrieved Matter . | . . . . . Retrieved Components . | . . . . . Parts Scanalyzed . | . . . . . Part Schematics Acquired . | . . . . . Parts Damaged . | . . . . . Bothacking | -11 -10 -10 -9 -9 ------------ Run | Yrd Mat Min Mat Min Used RIF Installer . | . . . . . Robots Hacked . | . . . . . Non-combat . | . . . . . Combat . | . . . . . Robot Hacks Applied . | . . . . . Relay Couplers Released . | . . . . . Fabnet Peak Effective % . | . . . . . Robots Rewired . | . . . . . Allies Hacked . | . . . . . Hacks Repelled . | . . . . . Allies | -11 -10 -10 -9 -9 -------- Run | Yrd Mat Min Mat Min Total Allies . | . . . . . Largest Group . | . . . . . Highest-Rated Group . | . . . . . Highest-Rated Ally . | . . . . . Total Orders . | . . . . . Ally Attacks 9 | . . . . 9 Total Damage 19 | . . . . 19 Kills . | . . . . . Allies Corrupted . | . . . . . Allies Melted . | . . . . . Intel | -11 -10 -10 -9 -9 ------- Run | Yrd Mat Min Mat Min Active Infowar (turns) . | . . . . . Robot Analysis Total 1 | . . . 1 . Derelict Logs Recovered 1 | . . . . 1 Drone Launches 9 | . . . . 9 Drone Recoveries 9 | . . . . 9 Exploration | -11 -10 -10 -9 -9 ------------- Run | Yrd Mat Min Mat Min Turns Passed 686 | 18 51 22 310 285 Spaces Moved 1221 | 30 98 43 602 448 Core 1174 | 30 98 43 555 448 Treads . | . . . . . Legs . | . . . . . Wheels . | . . . . . Hover . | . . . . . Flight 47 | . . . 47 . Fastest Speed 40 | 50 50 50 40 50 Average Speed 51 | 50 50 50 49 55 Slowest Speed 150 | 50 50 50 100 150 Overloaded Moves . | . . . . . Propulsion Burnouts . | . . . . . Robots Hopped 2 | . . . 2 . Potential Cave-ins . | . . . . . Cave-ins Triggered . | . . . . . Exploration Rate (%) 38 | 4 25 29 60 74 Regions Visited 4 Branch Regions 2 Pre-discovered Areas 1 | . . . . 1 Known Exits Taken 2 | . 1 . 1 . Unknown Exits Taken 2 | 1 . 1 . . Scrap Searched 2 | . . 1 . 1 Spaces Dug . | . . . . . Terrain Destroyed 14 | . . . 14 . Melee . | . . . . . Projectile . | . . . . . AOE 14 | . . . 14 . Terrain Rammed . | . . . . . Walls Destroyed . | . . . . . Machines Disabled . | . . . . . Actions | -11 -10 -10 -9 -9 --------- Run | Yrd Mat Min Mat Min Total 1264 | 32 99 42 611 480 Wait 26 | . . . . 26 Move 1213 | 29 97 42 597 448 Hop 2 | . . . 2 . Pick Up 8 | 3 2 . 3 . Fast Attach 2 | . . . 1 1 Attach 4 | . . . 3 1 Detach 2 | . . . 1 1 Swap . | . . . . . Drop 2 | . . . 2 . Fire 4 | . . . 1 3 Melee . | . . . . . Ram 1 | . . . 1 . Kick . | . . . . . Crush . | . . . . . Escape Stasis . | . . . . . Rewire . | . . . . . Trap . | . . . . . Miscellaneous . | . . . . . Route ------- -11/Scrapyard -10/Materials (discovered 2 exits: *Min x2) -10/Mines -9/Materials (discovered 3 exits: [*Mat] / *Min x2) -9/Mines (discovered 1 exit: [*Mat]) History --------- Turn | Location | Event 5 | -11/Scrapyard | Discovered new exit (range 15) 19 | -11/Scrapyard | Entered Materials 25 | -10/Materials | Identified exit to Mines 70 | -10/Materials | Entered Mines 86 | -10/Mines | Discovered new exit (range 12) 92 | -10/Mines | Entered Materials 92 | -9/Materials | Evolved 2 slots: Utility x2 249 | -9/Materials | Discovered new exit (range 15) 334 | -9/Materials | Build established: Mutant 336 | -9/Materials | Core integrity fell below 50% 342 | -9/Materials | Identified exit to Mines 402 | -9/Materials | Entered Mines 402 | -9/Mines | Discovered new exit (range 13) 405 | -9/Mines | Core integrity fell below 20% 418 | -9/Mines | Found a hidden stash of uninstalled traps 438 | -9/Mines | Found the Drone Emporium 445 | -9/Mines | Found Prototype Device 445 | -9/Mines | Identified Splice Drone Bay 576 | -9/Mines | Learned location of Storage (-8) 651 | -9/Mines | Learned location of 1 exit from Materials 666 | -9/Mines | Assembled infested the area 687 | -9/Mines | Destroyed by D-53 Grenadier with Mini Grenade Launcher Last Messages --------------- U-05 Engineer lays Concrete. WZKWPNYY: N9FKTQUJYZ2U UM PWV/ KPRA% A derelict emerges from the shadows: "Are any of them following you? I'm here trying to lose some heat after our second raid on Storage failed. Whatever you do stay away from that place, they've tightened security following our previous successful raids." World map updated: -8/Storage. ZA-FQB(g): "We scattered so the Unaware couldn't effectively use their advantage in numbers, and I suggest you do the same." ZA-FQB(g) slips back into the shadows. Searching scrap... Found Tractor Beam. Found Lgt. Treads. Found 40 Matter. Acquired 40 matter. Acquired derelict log, extracted data. Data stored: Materials exits (x1). ALERT: Infestation in the mines, dispatching Demolisher response squad. C-30 ARC bursts open, deploying its payload. D-53 Grenadier unfolds itself. Map ----- +----------------------------------------------------+ | | | | | | | | | | | | | | | ?????????????????????????????????????????????????? | | ??????????????????????????????????????####???????? | | ?????????????????????????????####???### ######### | | ????????????????????????????## ##?## # | | ????????????????????????????# ### # | | ????????????????????????????# ## | | ????????????????????????????## ### | | ????????????????????????????## ### ##?# | | ????????????????????????????# ##??# ##??# | | ????????????????????????????# ####????###???# | | ????????????????????????????# ##?????????????# | | ????????????????????????????## #??????????????# | | ????????????????????????????## #??????????????# | | ????????????????????????????# #??????????????# | | ????????????????????????????# ##??????????????# | | ????????????????????????##### ##??????????????## | | ?????????????????????#### # #??????????????## | | ????????????????????## ##????????????## | | ?????????????????# ## @ ##???????##### | | ?????????????????# #???????# | | ?????????????# ## #???????# #### | | ?????????????# ?????## # #???????# #??## | | ?????????????????# #### ### ##???????# #???# | | ?????????????????# #?######????????# #???## | | ?????????????????###### #???????????##### #????## | | ??????????????????????#%d#???????????# #?????# | | ??????????????????????#d #???????????# #####?????? | | ???????????????????#### #######?????# #??####???? | | ???????????????????# ####### #?## ##??# | | ??????????????????# ##### #?# #??# | | ??????????????????# ???# #########?# ##?# | | ??????????????? ???# #?????????# ### | | ???????????? ??# #??????????# | | ????????????## ### ??# #??????????# | | ?????????????#???# ##?# #??????????# | | ?????????????????## ##??# #??????????# ## | | ??????????????????## #???# ??????????# ##### | | ???????????????????## #??? ??????????# #???? | | ???#????????????????# ??? ??????????# #???? | | ?? ???????????????# ??? ??????????# #???? | | ?? ???????????????## ???###??????????# #???? | | ??< ????????????????# ????????????????# #???? | | ?? ????????????????# ?????????????????# #???? | +----------------------------------------------------+ Best States ------------- Heat Dissipation 28 Energy Generation 5 Energy Capacity 100 Matter Stores 272 Matter Capacity 300 Sight Range 16 Terrain Scan Density 10 Resistance: KI 20 Resistance: TH 20 Resistance: EX 20 Resistance: EM 20 Resistance: I 20 Resistance: S 20 Resistance: P 20 Evasion (%) 62 Offensive Hacking 10 Item Schematics ----------------- None Robot Schematics ------------------ None Fabricated ------------ Nothing Repaired ---------- Nothing Alien Tech Used ----------------- None Achievements -------------- None Challenges ------------ None Game ------ Seed InertialPhysicsField Manual? 0 Play Time 00:10:08 Cumulative 180.9 hours Start 2025.05.21 @ 22:03:25 End 2025.05.21 @ 22:11:35 Sessions 1 Manual Loads 0 Difficulty Adventurer Special Mode None Game No. 181 Rogue 18 Adventurer 152 Explorer 11 Win Type - Total 45 Types 13/0/13/2/7/0/4/1/0/5 Lore% 47 Gallery% 46 Achievement% 67 Wizard Run 0 Options --------- Layout 0 ASCII 0 Keyboard 0 Movement Numpad Keybinds 0 Fullscreen 2 Font 12/Smallcaps Map View 83x54 Zoom Use 0% Tactical HUD 0 Map Filters NONE Filters NONE Steam 1 RUN: faca50f9-a947-43a1-8ac5-97aae7e1cf9e